Cogmind - Beta 16 @@@ ROGUE MODE // 2025.12.10 @ 10:01:14 Player: Gatamar Result: Destroyed by Trooper 3c with Particle Gun Performance ------------- Evolutions (2) 1000 Regions Visited (8) 1600 Robots Destroyed (63) 315 Value Destroyed (1618) 1618 Prototype IDs (25) 500 Alien Tech Used (0) 0 Bonus (692) 692 TOTAL SCORE: 5725 Bonus ------- High Alert Combat Kills 13 Follower Combat Kills 379 Aligned with FarCom 300 Cogmind --------- Core Integrity 0/550 Matter 259/300 Energy 84/100 System Corruption 3% Temperature Cool (9) Movement Rolling (140) Ox4 Location -8/Storage Parts ------- > --- POWER (2) -------- (None) > --- PROPULSION (2) --- Light Treads Wheel > --- UTILITY (5) ------ Improved Heat Sink High-capacity Storage Unit Signal Interpreter Improved Terrain Scan Processor > --- WEAPON (2) ------- EM Shotgun EM Shotgun > --- INVENTORY (20) --- Light Treads Medium Matter Pod (100) Structural Scanner Visual Processing Unit Improved Terrain Scanner Improved Utility Shielding Particle Gun Field Laser Improved Assault Rifle Improved Datajack Mining Laser Mining Laser Peak State ------------ > --- POWER ------------ Improved Ion Engine > --- PROPULSION ------- (None) > --- UTILITY ---------- High-capacity Storage Unit Signal Interpreter Targeting Computer Hacking Suite > --- WEAPON ----------- YOLO Cannon > --- INVENTORY -------- Ion Engine Light Treads Wheel Medium Matter Pod Structural Scanner Visual Processing Unit Improved Terrain Scanner Improved Utility Shielding Light Assault Rifle Light Assault Rifle Grenade Launcher Improved Datajack Mining Laser Mining Laser [Rating: 30] Favorites ----------- Power Light Angular Momentum Engine Engine Light Angular Momentum Engine Power Core Nuclear Core Propulsion Aluminum Leg Treads Light Treads Leg Aluminum Leg Wheel Wheel Utility High-capacity Storage Unit Device Improved Heat Sink Storage High-capacity Storage Unit Processor Signal Interpreter Hackware Hacking Suite Protection Light Armor Plating Weapon Slug Cannon Energy Gun Beamcaster Energy Cannon Ion Cannon Ballistic Gun Light Assault Rifle Ballistic Cannon Slug Cannon Launcher Missile Launcher Special Melee Weapon Improved Datajack Build | -11 -10 -10 -9 -9 -9 -8 -8 -8 ------- Run | Yrd Mat Min Mat Min Exi Min Mat Sto Slots Evolved 4 | . . . 2 . . . 2 . Power 1 | . . . 1 . . . . . Propulsion . | . . . . . . . . . Utility 3 | . . . 1 . . . 2 . Weapon . | . . . . . . . . . Parts Attached 49 | 6 2 10 9 . 1 . 15 6 Power 10 | 1 . 2 2 . . . 3 2 Engine 7 | 1 . 2 2 . . . 2 . Core 3 | . . . . . . . 1 2 Reactor . | . . . . . . . . . Propulsion 10 | 2 . 3 3 . . . 2 . Treads 7 | 2 . 3 1 . . . 1 . Leg 2 | . . . 2 . . . . . Wheel 1 | . . . . . . . 1 . Hover . | . . . . . . . . . Flight . | . . . . . . . . . Utility 11 | 1 2 1 1 . 1 . 4 1 Device 1 | . . . . . . . . 1 Storage 4 | 1 2 . . . 1 . . . Processor 4 | . . 1 . . . . 3 . Hackware 1 | . . . 1 . . . . . Protection 1 | . . . . . . . 1 . Artifact . | . . . . . . . . . Weapon 18 | 2 . 4 3 . . . 6 3 Energy Gun 6 | . . 2 . . . . 1 3 Energy Cannon 3 | . . . 1 . . . 2 . Ballistic Gun 5 | 2 . 1 . . . . 2 . Ballistic Cannon 1 | . . 1 . . . . . . Launcher 2 | . . . 1 . . . 1 . Special Weapon . | . . . . . . . . . Impact Weapon . | . . . . . . . . . Slashing Weapon . | . . . . . . . . . Piercing Weapon . | . . . . . . . . . Special Melee Weapon 1 | . . . 1 . . . . . Unidentified Prototypes . | . . . . . . . . . Parts Lost 31 | . . 3 9 . . . 16 3 Power 9 | . . 1 1 . . . 5 2 Propulsion 6 | . . . 4 . . . 2 . Utility 4 | . . . . . . . 3 1 Weapon 12 | . . 2 4 . . . 6 . Highest Loss Streak 8 | . . 2 5 . . . 8 3 To Critical Strikes . | . . . . . . . . . Average Backups 14 | 2 7 14 19 18 17 15 13 8 Power 1 | . 1 1 2 2 1 1 . . Propulsion 1 | 1 2 2 3 1 1 1 1 . Utility 6 | . 1 6 7 8 7 7 5 5 Weapon 4 | . 2 3 5 6 6 5 4 2 Tool/Special . | . . . . . . . . . Unused Backups 8 | . . . . . . . . 8 Power . | . . . . . . . . . Propulsion . | . . . . . . . . . Utility 5 | . . . . . . . . 5 Weapon 2 | . . . . . . . . 2 Tool/Special 1 | . . . . . . . . 1 Average Slot Usage (%) 90 | . 98 99 92 88 88 88 82 71 Engine 17 | . 14 13 18 22 22 22 12 . Treads 11 | . 27 27 18 . . . . 9 Leg 10 | . . . 3 22 22 22 12 . Storage 13 | . 26 17 11 11 11 11 9 9 Processor 11 | . . 10 11 11 11 11 17 27 Hackware 6 | . . . 10 11 11 11 6 . Energy Gun 1 | . . 6 . . . . . 12 Energy Cannon 1 | . . . 3 . . . 6 . Ballistic Gun 7 | . 28 18 3 . . . 1 . Ballistic Cannon 7 | . . 3 7 11 11 11 6 . Peak Build Rating 30 | 6 8 21 28 20 22 22 30 25 Average Rating 18 | 4 7 13 21 20 21 22 20 16 On Entrance 14 | . 6 8 21 20 20 22 22 14 Avg Prop Armor Cover (%) 17 | . . . 12 . . . 19 17 Naked Turns . | . . . . . . . . . Heaviest Build 72 | 11 50 61 70 63 63 63 72 57 Greatest Support 40 | 40 40 40 40 20 20 20 20 10 Greatest Overweight (x) 21 | . 2 2 3 3 3 3 21 5 Average Overweight (x) 1 | . . 1 1 3 2 3 3 4 Largest Inventory Capacity 20 | 8 20 20 20 20 20 20 20 20 Average Capacity 19 | 7 11 20 20 20 19 20 20 20 Most Carried 20 | 4 12 20 20 18 20 16 16 12 Average Carried 15 | 2 7 14 19 18 18 16 13 8 Final Capacity 20 | 8 20 20 20 20 20 20 20 20 Final Carried 20 | 4 12 20 18 18 16 16 8 12 Class Distribution -------------------- 93% | Mutant 5% | Scavenger-Mutant Dominant Class ---------------- Mutant | -10/Materials Mutant | -10/Mines Mutant | -9/Materials Mutant | -9/Mines Mutant | -9/Exiles Mutant | -8/Mines Mutant | -8/Materials Commander-Mutant | -8/Storage Resources | -11 -10 -10 -9 -9 -9 -8 -8 -8 ----------- Run | Yrd Mat Min Mat Min Exi Min Mat Sto Matter Collected 1917 | 157 458 383 396 . 67 . 388 68 Remotely . | . . . . . . . . . Salvage Created 1781 | . 231 359 612 . . . 540 39 Parts 132 | . 28 22 34 . . . 45 3 Haulers Intercepted . | . . . . . . . . . Recyclers Shooed 3 | . 1 . . . . . 2 . Parts Field Recycled . | . . . . . . . . . Retrieved Matter . | . . . . . . . . . Parts Self-Destructed . | . . . . . . . . . Prevented . | . . . . . . . . . Parts Restored . | . . . . . . . . . Kills | -11 -10 -10 -9 -9 -9 -8 -8 -8 ------- Run | Yrd Mat Min Mat Min Exi Min Mat Sto Combat Hostiles Destroyed 46 | . 8 8 15 . . . 14 1 Guns 20 | . 8 7 3 . . . 1 1 Cannons 21 | . . 1 9 . . . 11 . AOE 4 | . . . 3 . . . 1 . Classes Destroyed 12 | . 5 2 3 . . . 1 1 Worker 6 | . 1 . 1 . . . 4 . Builder 3 | . . . . . . . 3 . Tunneler 1 | . . 1 . . . . . . Recycler 3 | . . . 2 . . . 1 . Mechanic 1 | . . . 1 . . . . . Operator 1 | . 1 . . . . . . . Watcher 2 | . 2 . . . . . . . Swarmer 14 | . 6 . 4 . . . 4 . Grunt 22 | . 2 6 7 . . . 7 . Duelist 1 | . . . 1 . . . . . Sentry 8 | . . 2 3 . . . 3 . Demolisher 1 | . . . . . . . . 1 Best Kill Streak 7 | . 3 2 4 . . . 7 1 Combat Bots Only 4 | . 3 2 4 . . . 4 1 Max Kills in Single Turn 3 | . 1 1 3 . . . 2 1 Gunslinging . | . . . . . . . . . Exploded 3 | . . . 3 . . . 1 . Melee . | . . . . . . . . . Uniques/NPCs Destroyed . | . . . . . . . . . Combat | -11 -10 -10 -9 -9 -9 -8 -8 -8 -------- Run | Yrd Mat Min Mat Min Exi Min Mat Sto Hostile Shots Fired 415 | . 54 50 135 . . . 174 2 Missed 101 | . 20 12 28 . . . 41 . Hits 314 | . 34 38 107 . . . 133 2 Melee 5 | . . . 5 . . . . . Projectile 309 | . 34 38 102 . . . 133 2 AOE 3 | . . . . . . . . 3 Critical Strikes 7 | . . 1 2 . . . 4 . Damage Taken 4599 | . 289 513 1281 . . . 2158 358 Core 964 | . 47 77 280 . . . 495 65 Absorbed by Shields . | . . . . . . . . . Regen/Repaired (Parts) 161 | . . . 161 . . . . . Core Remaining (%) 60 | 100 . 50 . . . 30 . . Volleys Fired 226 | . 33 38 73 . . . 74 8 Largest 2 | . 2 2 2 . . . 2 2 Hottest 115 | . 40 115 115 . . . 100 90 Shots Fired 364 | . 66 71 101 . . . 115 11 Gun 204 | . 66 65 37 . . . 25 11 Cannon 157 | . . 6 62 . . . 89 . Launcher 3 | . . . 2 . . . 1 . Special . | . . . . . . . . . Kinetic 276 | . 66 64 71 . . . 75 . Thermal 77 | . . 7 28 . . . 39 3 Explosive 3 | . . . 2 . . . 1 . Electromagnetic 8 | . . . . . . . . 8 Robot Hit Streak 10 | . 4 6 5 . . . 10 6 Robot Miss Streak 9 | . 7 4 9 . . . 6 5 Penetration Max 1 | . . . . . . . 1 . Secondary Targets 3 | . 3 . . . . . . . Max Gunslinging Chain 1 | . 1 . . . . . . . Shots Hit Robots 183 | . 30 39 50 . . . 57 7 Core Hits 97 | . 16 18 26 . . . 31 6 Critical Kills 5 | . . . 4 . . . 1 . Critical Parts Destroyed 2 | . . 1 . . . . 1 . Critical Strikes 8 | . . 1 5 . . . 2 . Burn 1 | . . . 1 . . . . . Meltdown 1 | . . . . . . . 1 . Destroy 6 | . . 1 4 . . . 1 . Melee Attacks 2 | . . . 2 . . . . . Impact . | . . . . . . . . . Slashing . | . . . . . . . . . Piercing . | . . . . . . . . . Sneak Attacks 1 | . . . 1 . . . . . Combat Hostiles . | . . . . . . . . . Follow-up Attacks . | . . . . . . . . . Damage Inflicted 4390 | . 338 526 1390 . . . 2037 99 Guns 1252 | . 329 457 221 . . . 147 98 Cannons 2126 | . . 64 799 . . . 1263 . Explosions 992 | . . . 369 . . . 623 . Melee . | . . . . . . . . . Ramming 20 | . 9 5 1 . . . 4 1 Kinetic 2279 | . 329 437 648 . . . 865 . Thermal 1588 | . . 84 372 . . . 1114 18 Explosive 423 | . . . 369 . . . 54 . Electromagnetic 80 | . . . . . . . . 80 Impact . | . . . . . . . . . Slashing . | . . . . . . . . . Piercing . | . . . . . . . . . Highest Corruption 4 | . 4 4 . . . . . 3 Average Corruption 3 | . 3 4 . . . . . 3 Corruption Purged . | . . . . . . . . . Corruption Blocked . | . . . . . . . . . Effects 34 | . . 34 . . . . . . Message Errors 9 | . . 9 . . . . . . Matter Fused 8 | . . 8 . . . . . . Heat Flow Errors 2 | . . 2 . . . . . . Energy Discharges 4 | . . 4 . . . . . . Parts Rejected 1 | . . 1 . . . . . . Data Loss (minor) 4 | . . 4 . . . . . . Data Loss (major) 2 | . . 2 . . . . . . Misfires 2 | . . 2 . . . . . . Alerts 1 | . . 1 . . . . . . Weapon Failures 1 | . . 1 . . . . . . Overload Shots . | . . . . . . . . . Overflow Damage 264 | . . . 66 . . . 198 . Projectiles 76 | . . . 35 . . . 41 . Explosions 188 | . . . 31 . . . 157 . Melee . | . . . . . . . . . Knockbacks 10 | . . . 5 . . . 5 . Impact . | . . . . . . . . . Kinetic 8 | . . . 5 . . . 3 . Secondary 2 | . . . . . . . 2 . Self-Inflicted Damage 399 | . . . 101 . . . 298 . Shots 7 | . . . 2 . . . 5 . Rammed 6 | . 2 1 1 . . . 1 1 Targets Rammed 10 | . 3 2 1 . . . 3 1 Kicked 2 | . . . . . . . 2 . Crushed 2 | . 1 1 . . . . . . Highest Temperature 438 | . 12 324 438 . . . 425 9 Average Temperature 139 | . 7 95 122 . . . 177 9 Received Heat Transfer 1683 | . 42 291 306 . . . 990 54 Effects 12 | . . . 5 . . . 7 . Shutdowns 6 | . . . 2 . . . 4 . Energy Bleed 4 | . . . 2 . . . 2 . Matter Decay 1 | . . . . . . . 1 . Short Circuit 1 | . . . 1 . . . . . Siege Activations . | . . . . . . . . . Martial Activations . | . . . . . . . . . Shielding Activations . | . . . . . . . . . Robots Disrupted . | . . . . . . . . . Combat Hostiles . | . . . . . . . . . Robots Corrupted . | . . . . . . . . . Combat Hostiles . | . . . . . . . . . Parts Fried . | . . . . . . . . . Impact Corruptions . | . . . . . . . . . Robots Melted 1 | . . . . . . . 1 . Combat Hostiles 1 | . . . . . . . 1 . Parts Melted 3 | . . 1 1 . . . 1 . Heat Transferred 2097 | . . 148 740 . . . 1172 37 Parts Sabotaged . | . . . . . . . . . Parts Stolen . | . . . . . . . . . Parts Stripped . | . . . . . . . . . Power Chain Reactions . | . . . . . . . . . Alert | -11 -10 -10 -9 -9 -9 -8 -8 -8 ------- Run | Yrd Mat Min Mat Min Exi Min Mat Sto Maximum Alert Level 2 | . . . . . . . . 2 Low Security (%) 98 | 100 100 100 100 100 . 100 100 49 Level 1 1 | . . . . . . . . 50 Level 2 . | . . . . . . . . . Level 3 . | . . . . . . . . . Level 4 . | . . . . . . . . . Level 5 . | . . . . . . . . . High Security . | . . . . . . . . . Max Security . | . . . . . . . . . Peak Influence 396 | . 105 44 106 23 . . 171 396 Initial 59 | . . . . 23 . . . 59 Average 24 | . 34 7 32 3 . . 51 170 Influence Increases 1962 | . 229 208 420 . . . 593 512 Destroy 0b10 Robot/C 1140 | . 160 160 300 . . . 280 240 Destroy 0b10 Robot/NC 90 | . 20 5 20 . . . 40 5 Destroy Leader 256 | . 34 40 60 . . . 60 62 Allied During Kill 190 | . . . . . . . . 190 Successful Hack 19 | . . . 5 . . . . 14 Disable Machine 45 | . 15 . . . . . 30 . Destroy Structure 162 | . . 3 35 . . . 123 1 Lose Combat Pursuer 60 | . . . . . . . 60 . Influence Decreases 1591 | . 229 208 360 60 . . 452 282 Entered New Map 119 | . . . . 37 . . . 82 Time Decay 1122 | . 229 198 302 23 . . 280 90 Lost Part 258 | . . 10 58 . . . 160 30 Lost Ally 80 | . . . . . . . . 80 Purge Threat 12 | . . . . . . . 12 . Squads Dispatched 12 | . 1 1 1 . . . 5 4 Investigation 3 | . . 1 . . . . . 2 Extermination . | . . . . . . . . . Reinforcement 4 | . 1 . 1 . . . 1 1 Assault . | . . . . . . . . . Garrison 5 | . . . . . . . 4 1 Intercept . | . . . . . . . . . Searches Triggered . | . . . . . . . . . Construction Impeded 1 | . . . . . . . 1 . Haulers Reinforced . | . . . . . . . . . Active Scanning Responses . | . . . . . . . . . Cargo Convoy Interrupts . | . . . . . . . . . Stealth | -11 -10 -10 -9 -9 -9 -8 -8 -8 --------- Run | Yrd Mat Min Mat Min Exi Min Mat Sto Distress Signals 4 | . . . 1 . . . 3 . Communications Jammed . | . . . . . . . . . Distress Signals . | . . . . . . . . . Times Spotted 89 | . 13 8 22 . . . 31 15 Peak Tracking Total 6 | . 3 2 5 . . . 6 6 Tactical Retreats 3 | . . . . . . . 3 . Traps | -11 -10 -10 -9 -9 -9 -8 -8 -8 ------- Run | Yrd Mat Min Mat Min Exi Min Mat Sto Traps Triggered 4 | . 3 . . . . . . 1 Indirectly . | . . . . . . . . . Trap Hack Attempts . | . . . . . . . . . Triggered . | . . . . . . . . . Disarmed . | . . . . . . . . . Reprogrammed . | . . . . . . . . . Reused . | . . . . . . . . . Traps Extracted . | . . . . . . . . . Installed . | . . . . . . . . . Triggered . | . . . . . . . . . Machines | -11 -10 -10 -9 -9 -9 -8 -8 -8 ---------- Run | Yrd Mat Min Mat Min Exi Min Mat Sto Machines Disabled 5 | . 1 2 . . . . 2 . Max in Single Turn 2 | . 1 2 . . . . 1 . Machines Repaired . | . . . . . . . . . Machines Dismantled . | . . . . . . . . . Machines Sabotaged . | . . . . . . . . . Overloaded Fab Kills . | . . . . . . . . . Hacking | -11 -10 -10 -9 -9 -9 -8 -8 -8 --------- Run | Yrd Mat Min Mat Min Exi Min Mat Sto Machines Accessed 11 | . 3 1 3 . 1 . 1 2 Terminals 7 | . 2 . 2 . . . 1 2 Fabricators . | . . . . . . . . . Repair Stations 1 | . . . 1 . . . . . Recycling Units 1 | . 1 . . . . . . . Scanalyzers . | . . . . . . . . . Garrison Access . | . . . . . . . . . Total Hacks 20 | . 4 1 6 . 1 . 4 4 Successful 17 | . 3 1 5 . 1 . 4 3 Failed 3 | . 1 . 1 . . . . 1 Catastrophic . | . . . . . . . . . Database Lockouts . | . . . . . . . . . Manual 3 | . . . 1 . 1 . 1 . Terminals 15 | . 3 . 4 . . . 4 4 Fabricators . | . . . . . . . . . Repair Stations 2 | . . . 2 . . . . . Recycling Units 1 | . 1 . . . . . . . Scanalyzers . | . . . . . . . . . Garrison Access . | . . . . . . . . . Terminal Hacks 14 | . 2 1 3 . 1 . 4 3 Record 2 | . . . 2 . . . . . Prototype ID Bank 1 | . . . . . . . . 1 Open Door 1 | . . 1 . . . . . . Emergency Access Points 1 | . . . . . . . . 1 Alert Level 1 | . . . . . . . 1 . Unreport Threat 1 | . . . . . . . 1 . Dispatch Records 1 | . . . . . . . 1 . Transport Status 1 | . 1 . . . . . . . Reinforcement Status 1 | . . . . . . . 1 . Hauler Manifests 1 | . . . 1 . . . . . Zone Layout 2 | . 1 . . . . . . 1 Proto ID Catalog 1 | . . . . . 1 . . . Fabricator Hacks . | . . . . . . . . . Repair Station Hacks 2 | . . . 2 . . . . . Scan Component 1 | . . . 1 . . . . . Repair 1 | . . . 1 . . . . . Recycling Unit Hacks 1 | . 1 . . . . . . . Report Inventory 1 | . 1 . . . . . . . Scanalyzer . | . . . . . . . . . Garrison Access Hacks . | . . . . . . . . . Unauthorized Hacks . | . . . . . . . . . Terminals . | . . . . . . . . . Fabricators . | . . . . . . . . . Repair Stations . | . . . . . . . . . Recycling Units . | . . . . . . . . . Scanalyzers . | . . . . . . . . . Garrison Access . | . . . . . . . . . Data Cores Recovered . | . . . . . . . . . Used . | . . . . . . . . . Hacking Detections 7 | . 1 . 3 . . . 1 2 Full Trace Events 1 | . . . . . . . . 1 Feedback Events . | . . . . . . . . . Feedback Blocked . | . . . . . . . . . Robot Schematics Acquired . | . . . . . . . . . Robots Built . | . . . . . . . . . Authchips . | . . . . . . . . . Time . | . . . . . . . . . Total Robot Build Rating . | . . . . . . . . . Part Schematics Acquired . | . . . . . . . . . Parts Built . | . . . . . . . . . Authchips . | . . . . . . . . . Time . | . . . . . . . . . Total Part Build Rating . | . . . . . . . . . Part Studies Acquired . | . . . . . . . . . Parts Repaired 1 | . . . 1 . . . . . Time 44 | . . . 44 . . . . . Parts Recycled . | . . . . . . . . . Recycled Matter . | . . . . . . . . . Retrieved Matter . | . . . . . . . . . Retrieved Components . | . . . . . . . . . Parts Scanalyzed . | . . . . . . . . . Part Schematics Acquired . | . . . . . . . . . Parts Damaged . | . . . . . . . . . Bothacking | -11 -10 -10 -9 -9 -9 -8 -8 -8 ------------ Run | Yrd Mat Min Mat Min Exi Min Mat Sto Used RIF Installer . | . . . . . . . . . Robots Hacked 2 | . . . 2 . . . . . Non-combat 1 | . . . 1 . . . . . Combat 1 | . . . 1 . . . . . Robot Hacks Applied 2 | . . . 2 . . . . . parse_system 1 | . . . 1 . . . . . no_distress 1 | . . . 1 . . . . . Relay Couplers Released . | . . . . . . . . . Fabnet Peak Effective % . | . . . . . . . . . Robots Rewired . | . . . . . . . . . Allies Hacked . | . . . . . . . . . Hacks Repelled . | . . . . . . . . . Allies | -11 -10 -10 -9 -9 -9 -8 -8 -8 -------- Run | Yrd Mat Min Mat Min Exi Min Mat Sto Total Allies 10 | . . . . . . . . 10 Largest Group 10 | . . . . . . . . 10 Highest-Rated Group 173 | . . . . . . . . 173 Highest-Rated Ally 29 | . . . . . . . . 29 Total Orders . | . . . . . . . . . Ally Attacks 110 | . . . . . . . . 110 Total Damage 1275 | . . . . . . . . 1275 Kills 12 | . . . . . . . . 12 Allies Corrupted . | . . . . . . . . . Allies Melted . | . . . . . . . . . Intel | -11 -10 -10 -9 -9 -9 -8 -8 -8 ------- Run | Yrd Mat Min Mat Min Exi Min Mat Sto Active Infowar (turns) . | . . . . . . . . . Robot Analysis Total . | . . . . . . . . . Derelict Logs Recovered 2 | . . 2 . . . . . . Drone Launches . | . . . . . . . . . Drone Recoveries . | . . . . . . . . . Exploration | -11 -10 -10 -9 -9 -9 -8 -8 -8 ------------- Run | Yrd Mat Min Mat Min Exi Min Mat Sto Turns Passed 8714 | 94 817 1772 1307 218 1557 1601 1162 186 Spaces Moved 2936 | 52 381 664 439 67 470 486 270 107 Core 15 | 1 . . . . . . 14 . Treads 1508 | 51 381 664 384 . . . 28 . Legs 1281 | . . . 55 67 470 486 203 . Wheels 132 | . . . . . . . 25 107 Hover . | . . . . . . . . . Flight . | . . . . . . . . . Fastest Speed 50 | 50 160 240 240 330 190 330 140 140 Average Speed 269 | 157 181 242 251 330 328 330 335 140 Slowest Speed 1100 | 160 320 320 400 330 330 330 1100 155 Overloaded Moves . | . . . . . . . . . Propulsion Burnouts . | . . . . . . . . . Robots Hopped . | . . . . . . . . . Potential Cave-ins 3 | . . . . . . . 3 . Cave-ins Triggered 1 | . . . . . . . . 1 Exploration Rate (%) 46 | 5 67 99 29 24 90 62 21 24 Regions Visited 8 Branch Regions 5 Pre-discovered Areas . | . . . . . . . . . Known Exits Taken 6 | . . 1 1 1 1 1 1 . Unknown Exits Taken 2 | 1 1 . . . . . . . Scrap Searched 1 | . . 1 . . . . . . Spaces Dug . | . . . . . . . . . Terrain Destroyed 177 | . . 4 31 . . . 142 . Melee . | . . . . . . . . . Projectile 54 | . . 4 13 . . . 37 . AOE 123 | . . . 18 . . . 105 . Terrain Rammed . | . . . . . . . . . Walls Destroyed . | . . . . . . . . . Machines Disabled . | . . . . . . . . . Actions | -11 -10 -10 -9 -9 -9 -8 -8 -8 --------- Run | Yrd Mat Min Mat Min Exi Min Mat Sto Total 3360 | 61 444 756 544 66 492 485 384 128 Wait 76 | . 16 33 4 . . . 21 2 Move 2928 | 51 380 663 438 66 469 485 269 107 Hop . | . . . . . . . . . Pick Up 42 | 4 8 8 7 . 9 . 2 4 Fast Attach 22 | 6 2 2 2 . . . 6 4 Attach 22 | . . 2 11 . . . 9 . Detach 2 | . . . 2 . . . . . Swap 15 | . 1 7 3 . 2 . . 2 Drop 15 | . 1 1 1 . 12 . . . Fire 226 | . 33 38 73 . . . 74 8 Melee 2 | . . . 2 . . . . . Ram 2 | . . . . . . . 1 1 Kick 2 | . . . . . . . 2 . Crush 6 | . 3 2 1 . . . . . Escape Stasis . | . . . . . . . . . Rewire . | . . . . . . . . . Trap . | . . . . . . . . . Miscellaneous . | . . . . . . . . . Route ------- -11/Scrapyard -10/Materials (discovered 3 exits: *Mat x2 / *Min) -10/Mines (discovered 3 exits: *Mat x2 / *Sub) -9/Materials -9/Mines (discovered 2 exits: *Mat / *Exi) -9/Exiles (discovered 2 exits: *Min x2) -8/Mines -8/Materials -8/Storage History --------- Turn | Location | Event 5 | -11/Scrapyard | Discovered new exit (range 16) 95 | -11/Scrapyard | Entered Materials 285 | -10/Materials | Discovered new exit (range 13) 301 | -10/Materials | Build established: Mutant 552 | -10/Materials | Discovered new exit (range 10) 597 | -10/Materials | Discovered new exit (range 8) 912 | -10/Materials | Entered Mines 976 | -10/Mines | Met a Derelict bent on vengeance 1279 | -10/Mines | Learned Materials emergency access door positions 1288 | -10/Mines | Discovered new exit (range 11) 1321 | -10/Mines | Identified exit to Materials 1805 | -10/Mines | Met a Derelict shopkeep closing up shop 2053 | -10/Mines | Learned 2 Materials zone layouts 2083 | -10/Mines | Found a hidden stash of uninstalled traps 2198 | -10/Mines | Discovered exit to Materials (range 15) 2225 | -10/Mines | A weapon hastily lodged in a ceiling crevice suddenly fell to the ground 2367 | -10/Mines | Joined a pair of Derelicts in attacking an 0b10 outpost 2510 | -10/Mines | Discovered new exit (range 4) 2515 | -10/Mines | Identified exit to Subcaves 2684 | -10/Mines | Entered Materials 2684 | -9/Materials | Evolved 2 slots: Power x1, Utility x1 3314 | -9/Materials | Build established: Scavenger-Mutant 3420 | -9/Materials | Lost 3 parts (1p1n1w) 3558 | -9/Materials | Repaired Slug Cannon? 3671 | -9/Materials | Build established: Mutant 3791 | -9/Materials | Core integrity fell below 50% 3825 | -9/Materials | Lost 5 parts (2n3w) 3944 | -9/Materials | Discovered new exit (range 9) 3967 | -9/Materials | Identified exit to Mines 3991 | -9/Materials | Entered Mines 4130 | -9/Mines | Discovered new exit (range 15) 4176 | -9/Mines | Identified exit to Materials 4193 | -9/Mines | Deemed a non-threat by the Exiles lab entrance 4196 | -9/Mines | Discovered new exit (range 5) 4206 | -9/Mines | Identified exit to Exiles 4209 | -9/Mines | Entered Exiles 4305 | -9/Exiles | Discovered new exit (range 14) 4338 | -9/Exiles | Identified exit to Mines 4401 | -9/Exiles | Met 8R-AWN 4457 | -9/Exiles | Met EX-HEX 4546 | -9/Exiles | Met EX-BIN 4599 | -9/Exiles | Aligned with FarCom system 4602 | -9/Exiles | Given EX-Vault access code 4678 | -9/Exiles | Opened EX-Vault 4704 | -9/Exiles | Found YOLO Cannon 4771 | -9/Exiles | Warned to stay clear of 0b10 Research branches 4864 | -9/Exiles | Met EX-DEC 4994 | -9/Exiles | Visited The Gauntlet 5737 | -9/Exiles | Discovered exit to Mines (range 10) 5766 | -9/Exiles | Left Exiles lab with YOLO Cannon 5766 | -9/Exiles | Entered Mines 6096 | -8/Mines | Discovered exit to Materials (range 9) 7367 | -8/Mines | Entered Materials 7367 | -8/Materials | Evolved 2 slots: Utility x2 7947 | -8/Materials | Garrison activated, responded to threat 8122 | -8/Materials | Discovered new exit (range 15) 8243 | -8/Materials | Lost 8 parts (2p2n2u2w) 8263 | -8/Materials | Core integrity fell below 50% 8312 | -8/Materials | Garrison activated, responded to threat 8394 | -8/Materials | Core integrity fell below 20% 8447 | -8/Materials | Lost 5 parts (1p1u3w) 8522 | -8/Materials | Identified exit to Storage 8529 | -8/Materials | Entered Storage 8557 | -8/Storage | Assisted by bots powering up and referring to "LRC-V3" 8681 | -8/Storage | Garrison activated, responded to threat 8711 | -8/Storage | Crushed by falling debris 8715 | -8/Storage | Destroyed by Trooper 3c with Particle Gun Last Messages --------------- 08706_ The unstable cave ceiling collapses. 08708_ Acquired Lgt. Treads. 08709_ Slammed into A-02 Transporter. 08709_ Destabilizing: System interference. 08709_ EM Shotgun temporarily disabled. 08710_ D-53 Grenadier destroyed. 08711_ The unstable cave ceiling collapses. 08711_ Crushed by falling debris. 08711_ Lgt. Nuclear Core destroyed. 08711_ System corrupted by crushing effect (+1). 08711_ Imp. Terrain Scan Processor destroyed. 08711_ System corrupted by crushing effect (+1). 08711_ Lgt. Nuclear Core destroyed. 08711_ System corrupted by crushing effect (+1). 08711_ R-06 Scavenger collects Corrupted Mni. Grenade Launcher. 08712_ Trooper 3g destroyed. 08714_ W-25 Informer destroyed. 08714_ R-06 Scavenger collects Corrupted Lgt. Deuterium Engine. Map ----- +----------------------------------------------------+ | ?????# #?????########## ?????????????? | | ?????# #??### ########/##?????????????? | | ?????# #?## # # ## +?????????????? | | ?????# ### # #?????????????? | | ?????# + + #?????????????? | | ?????# ### #?????????????? | | ?????# #?# +?????????????? | | ?????# #?# #?????????????? | | ?????# ! #?## #?????????????? | | ?????#######+##??## # #?????????????? | | ??????# ##%####??## #" #?????????????? | | ??????# +% #???# """ ##T #?????????????? | | ??????# # #???# """" " ##" #?????????????? | | ??????# # #???# " "" " ### #?????????????? | | ??????# T## #???# " "" " #?# #?????????????? | | ??????###### #???# " """" #?# #?????????????? | | ?????#######/## ##### """ #?# #?????????????? | | ?????# # " * ### ""????????????? | | ?????# # # =%[! ## T"????????????? | | ?????# # =%### = # ""????????????? | | ?????#[ #* / = % [a[ #?????????????? | | ?????#[[ +%! ![%%[[* =g #??????????????????? | | ?????#[[ ""# =!==% %% #??????????????????? | | ?????# Y"######### #g gg #??????????????????? | | ?????# ""#???? # g ##??????????????????? | | ?????# #??#""" ##@ ##???????????????????? | | ?????##########??#"?" ?# rg#????????????????????? | | ????????????????????" ?# %#????????????????????? | | ??????????????????? ??T !#????????????????????? | | ??????????????????""" ??# g%#????????????????????? | | ??????????????????""" ??# ????????????????????? | | ???????????????????"" ?? ???????????????????? | | ???????????????????? ???# ??????????????????? | | ????????????????????+???### ###??????????????????? | | ???????????????????????????+#????????????????????? | | ?????????????????????????????????????????????????? | | ?????????????????????????????????????????????????? | | ?????????????????????????????????????????????????? | | ?????????????????????????????????????????????????? | | ?????????????????????????????????????????????????? | | ?????????????????????????????????????????????????? | | ?????????????????????????????????????????????????? | | ?????????????????????????????????????????????????? | | ?????????????????????????????????????????????????? | | ?????????????????????????????????????????????????? | | ?????????????????????????????????????????????????? | | ?????????????????????????????????????????????????? | | ?????????????????????????????????????????????????? | | ?????????????????????????????????????????????????? | | ?????????????????????????????????????????????????? | +----------------------------------------------------+ Best States ------------- Heat Dissipation 45 Energy Generation 27 Energy Capacity 325 Matter Stores 500 Matter Capacity 500 Sight Range 16 Terrain Scan Density 210 Armor Coverage 150 Evasion (%) 40 Targeting Accuracy 5 Recoil Reduction 2 Offensive Hacking 10 Item Schematics ----------------- None Robot Schematics ------------------ None Fabricated ------------ Nothing Repaired ---------- Slug Cannon | 2% | -9/Materials Studied --------- None Alien Tech Used ----------------- None Achievements -------------- Junior Dev Challenges ------------ None Game ------ Seed TitaniumReactionKatana Manual? 0 Play Time 00:40:19 Cumulative 17.1 hours Start 2025.12.10 @ 07:46:45 End 2025.12.10 @ 10:01:14 Sessions 3 Manual Loads 0 Difficulty Rogue Special Mode None Game No. 48 Rogue 48 Adventurer 0 Explorer 0 Win Type - Total 0 Types 0/0/0/0/0/0/0/0/0/0 Lore% 17 Gallery% 21 Achievement% 16 Wizard Run 0 Options --------- Layout 1 ASCII 0 Keyboard 0 Movement Mouse Keybinds 0 Fullscreen 1 Font 32/SmallcapsGlow Map View 50x35 Zoom Use 0% Tactical HUD 1 Map Filters NONE Filters NONE Steam 1 RUN: f706f548-2095-45bf-9c23-0ffade92493a